[Event "*** SCC Grand Prix: Titled Tuesday Blitz"]
[Site "Chess.com"]
[Date "2020.06.23"]
[Round "5"]
[White "Barmen_EV"]
[Black "Igrok3069"]
[Result "0-1"]
[WhiteElo "2482"]
[BlackElo "2732"]
[TimeControl "180+1"]
[EndTime "10:56:36 PDT"]
[Termination "Igrok3069 won on time"]

1. d4 {[%clk 0:02:23.5]} 1... d5 {[%clk 0:02:54.4]} 2. c4 {[%clk 0:02:24.4]}
2... c6 {[%clk 0:02:54]} 3. Nc3 {[%clk 0:02:25.3]} 3... Nf6 {[%clk 0:02:53.7]}
4. Nf3 {[%clk 0:02:25.2]} 4... e6 {[%clk 0:02:53.8]} 5. g3 {[%clk 0:02:23.6]}
5... dxc4 {[%clk 0:02:51.5]} 6. Bg2 {[%clk 0:02:24.5]} 6... Nbd7 {[%clk
0:02:50.8]} 7. O-O {[%clk 0:02:09.6]} 7... Be7 {[%clk 0:02:48.9]} 8. e4 {[%clk
0:01:55.4]} 8... O-O {[%clk 0:02:44.5]} 9. b3 {[%clk 0:01:46.8]} 9... Bb4 {[%clk
0:02:39.8]} 10. Qc2 {[%clk 0:01:31.4]} 10... cxb3 {[%clk 0:02:38.9]} 11. axb3
{[%clk 0:01:25.1]} 11... Bxc3 {[%clk 0:02:38.7]} 12. Qxc3 {[%clk 0:01:26]} 12...
Nxe4 {[%clk 0:02:39]} 13. Qc2 {[%clk 0:01:26.3]} 13... Nd6 {[%clk 0:02:29.3]}
14. Ba3 {[%clk 0:01:27.2]} 14... Nf6 {[%clk 0:02:26.1]} 15. Ne5 {[%clk
0:01:25.3]} 15... Re8 {[%clk 0:02:25.1]} 16. h4 {[%clk 0:01:12.8]} 16... Nb5
{[%clk 0:02:18.5]} 17. Bb2 {[%clk 0:01:11]} 17... Qb6 {[%clk 0:01:53.5]} 18. Nc4
{[%clk 0:01:04.7]} 18... Qc7 {[%clk 0:01:50.4]} 19. Rfe1 {[%clk 0:01:01.6]}
19... Rd8 {[%clk 0:01:50]} 20. Rad1 {[%clk 0:01:01.1]} 20... Bd7 {[%clk
0:01:50]} 21. Ne5 {[%clk 0:00:50.5]} 21... Be8 {[%clk 0:01:49.4]} 22. g4 {[%clk
0:00:50.7]} 22... Qe7 {[%clk 0:01:27.5]} 23. g5 {[%clk 0:00:42.8]} 23... Nh5
{[%clk 0:01:25.9]} 24. Be4 {[%clk 0:00:43.7]} 24... g6 {[%clk 0:01:25.5]} 25.
Ng4 {[%clk 0:00:40.8]} 25... Rac8 {[%clk 0:01:13.9]} 26. Qc5 {[%clk 0:00:25.4]}
26... Qxc5 {[%clk 0:01:09.4]} 27. dxc5 {[%clk 0:00:26.3]} 27... Kf8 {[%clk
0:01:08.9]} 28. Be5 {[%clk 0:00:20.6]} 28... a5 {[%clk 0:00:54]} 29. Bd3 {[%clk
0:00:17.5]} 29... Rd5 {[%clk 0:00:51.1]} 30. Bc4 {[%clk 0:00:02.1]} 30... Rxc5
{[%clk 0:00:47.6]} 31. Nf6 {[%clk 0:00:01.8]} 31... Nxf6 {[%clk 0:00:44.4]} 32.
Bxf6 {[%clk 0:00:02.7]} 32... Rf5 {[%clk 0:00:41.6]} 33. f4 {[%clk 0:00:02]}
33... Rxf4 {[%clk 0:00:40.7]} 34. Be5 {[%clk 0:00:02.3]} 34... Rf5 {[%clk
0:00:39.5]} 35. Bxb5 {[%clk 0:00:02]} 35... cxb5 {[%clk 0:00:38.7]} 36. Bd6+
{[%clk 0:00:02.3]} 36... Kg8 {[%clk 0:00:38.1]} 37. Be7 {[%clk 0:00:02.7]} 37...
Bc6 {[%clk 0:00:35.2]} 38. Rd4 {[%clk 0:00:02.4]} 38... Rd5 {[%clk 0:00:33.7]}
0-1

[Event "*** SCC Grand Prix: Titled Tuesday Blitz"]
[Site "Chess.com"]
[Date "2020.06.23"]
[Round "5"]
[White "Ashedu66"]
[Black "Ural_bogatyr"]
[Result "1-0"]
[WhiteElo "2172"]
[BlackElo "2327"]
[TimeControl "180+1"]
[EndTime "10:56:37 PDT"]
[Termination "Ashedu66 won on time"]

1. d4 {[%clk 0:03:00.9]} 1... Nf6 {[%clk 0:02:58.8]} 2. Nf3 {[%clk 0:03:00.5]}
2... d5 {[%clk 0:02:58.2]} 3. c4 {[%clk 0:03:00.2]} 3... c6 {[%clk 0:02:58.1]}
4. Nc3 {[%clk 0:03:00]} 4... e6 {[%clk 0:02:58.1]} 5. e3 {[%clk 0:03:00]} 5...
Nbd7 {[%clk 0:02:58]} 6. b3 {[%clk 0:02:59.5]} 6... Bb4 {[%clk 0:02:51.7]} 7.
Bd2 {[%clk 0:02:59.4]} 7... Qa5 {[%clk 0:02:45.5]} 8. Qc2 {[%clk 0:02:45.9]}
8... O-O {[%clk 0:02:18]} 9. a3 {[%clk 0:02:40.7]} 9... Bxc3 {[%clk 0:02:17.4]}
10. Bxc3 {[%clk 0:02:40.7]} 10... Qc7 {[%clk 0:02:14.9]} 11. Bd3 {[%clk
0:02:27]} 11... b6 {[%clk 0:01:42.8]} 12. O-O {[%clk 0:02:22]} 12... Bb7 {[%clk
0:01:40.1]} 13. b4 {[%clk 0:01:45.4]} 13... c5 {[%clk 0:01:34.9]} 14. bxc5
{[%clk 0:01:33]} 14... bxc5 {[%clk 0:01:31.5]} 15. cxd5 {[%clk 0:01:17.7]} 15...
Nxd5 {[%clk 0:01:29.2]} 16. Bb2 {[%clk 0:01:04.1]} 16... f5 {[%clk 0:00:59.9]}
17. Rfc1 {[%clk 0:00:50.4]} 17... Rac8 {[%clk 0:00:52.7]} 18. Qe2 {[%clk
0:00:49.3]} 18... Qd6 {[%clk 0:00:42.7]} 19. Bc4 {[%clk 0:00:31.9]} 19... cxd4
{[%clk 0:00:31.9]} 20. Bxd4 {[%clk 0:00:24]} 20... a6 {[%clk 0:00:13.7]} 21. Ba2
{[%clk 0:00:20.5]} 21... e5 {[%clk 0:00:13.4]} 22. Bb2 {[%clk 0:00:19.3]} 22...
e4 {[%clk 0:00:13.5]} 23. Nd4 {[%clk 0:00:19.1]} 23... Ne5 {[%clk 0:00:13.2]}
24. Rd1 {[%clk 0:00:17.9]} 24... Nd3 {[%clk 0:00:12.6]} 25. Rxd3 {[%clk
0:00:18]} 25... exd3 {[%clk 0:00:13.5]} 26. Qxd3 {[%clk 0:00:18.2]} 26... Kh8
{[%clk 0:00:05.8]} 27. Nxf5 {[%clk 0:00:16.9]} 27... Qg6 {[%clk 0:00:03.7]} 28.
e4 {[%clk 0:00:15.4]} 28... Nf4 {[%clk 0:00:02.8]} 29. Qf1 {[%clk 0:00:13.5]}
29... Rg8 {[%clk 0:00:02]} 30. Ng3 {[%clk 0:00:12.2]} 30... Bxe4 {[%clk
0:00:01.3]} 31. Re1 {[%clk 0:00:11.3]} 1-0

[Event "*** SCC Grand Prix: Titled Tuesday Blitz"]
[Site "Chess.com"]
[Date "2020.06.23"]
[Round "5"]
[White "THE_PLAYER6"]
[Black "talaicito"]
[Result "1-0"]
[WhiteElo "2471"]
[BlackElo "2111"]
[TimeControl "180+1"]
[EndTime "10:56:40 PDT"]
[Termination "THE_PLAYER6 won on time"]

1. d4 {[%clk 0:03:00.9]} 1... e6 {[%clk 0:02:59.4]} 2. c4 {[%clk 0:02:59.3]}
2... f5 {[%clk 0:02:59.7]} 3. Nc3 {[%clk 0:02:57.7]} 3... Bb4 {[%clk 0:02:58.8]}
4. Nf3 {[%clk 0:02:11.6]} 4... Nf6 {[%clk 0:02:57]} 5. Qc2 {[%clk 0:01:41.5]}
5... O-O {[%clk 0:02:40.6]} 6. e3 {[%clk 0:01:29.5]} 6... b6 {[%clk 0:02:40.7]}
7. Nd2 {[%clk 0:01:27.3]} 7... Bb7 {[%clk 0:02:38.8]} 8. f3 {[%clk 0:01:27.8]}
8... Nh5 {[%clk 0:02:26.2]} 9. g3 {[%clk 0:01:19.9]} 9... Nc6 {[%clk 0:02:10.8]}
10. Be2 {[%clk 0:01:15.5]} 10... f4 {[%clk 0:02:10.1]} 11. Nf1 {[%clk
0:00:53.5]} 11... Qf6 {[%clk 0:01:49.2]} 12. a3 {[%clk 0:00:34.4]} 12... Bxc3+
{[%clk 0:01:19.3]} 13. Qxc3 {[%clk 0:00:32.7]} 13... e5 {[%clk 0:01:10.5]} 14.
d5 {[%clk 0:00:27.5]} 14... Ne7 {[%clk 0:01:08.6]} 15. exf4 {[%clk 0:00:24.6]}
15... exf4 {[%clk 0:01:06.6]} 16. Qxf6 {[%clk 0:00:22.3]} 16... Nxf6 {[%clk
0:01:02.1]} 17. Bxf4 {[%clk 0:00:21.3]} 17... d6 {[%clk 0:00:51.6]} 18. Bd2
{[%clk 0:00:21.2]} 18... Nf5 {[%clk 0:00:47.5]} 19. Bc3 {[%clk 0:00:19.4]} 19...
Rfe8 {[%clk 0:00:46.6]} 20. Kf2 {[%clk 0:00:19.8]} 20... Ba6 {[%clk 0:00:44.4]}
21. Bd3 {[%clk 0:00:19.6]} 21... Bc8 {[%clk 0:00:41.3]} 22. g4 {[%clk
0:00:18.4]} 22... Nh4 {[%clk 0:00:35.7]} 23. Ng3 {[%clk 0:00:17]} 23... Bd7
{[%clk 0:00:33.6]} 24. Rae1 {[%clk 0:00:17]} 24... Bxg4 {[%clk 0:00:22.2]} 25.
Bxf6 {[%clk 0:00:13.7]} 25... Nxf3 {[%clk 0:00:14.4]} 26. Rxe8+ {[%clk
0:00:12.7]} 26... Rxe8 {[%clk 0:00:14.8]} 27. Bc3 {[%clk 0:00:13]} 27... Rf8
{[%clk 0:00:11.3]} 28. Ke3 {[%clk 0:00:10.9]} 28... Re8+ {[%clk 0:00:07.4]} 29.
Be4 {[%clk 0:00:11.4]} 29... Ng5 {[%clk 0:00:04.7]} 30. Rf1 {[%clk 0:00:11.9]}
30... Bf3 {[%clk 0:00:03.1]} 31. Rxf3 {[%clk 0:00:10.1]} 31... Nxf3 {[%clk
0:00:03.2]} 32. Kxf3 {[%clk 0:00:11]} 32... g6 {[%clk 0:00:02.1]} 33. h4 {[%clk
0:00:10.3]} 33... Kf7 {[%clk 0:00:01.7]} 34. Bd4 {[%clk 0:00:08.7]} 1-0

[Event "*** SCC Grand Prix: Titled Tuesday Blitz"]
[Site "Chess.com"]
[Date "2020.06.23"]
[Round "5"]
[White "blitzking1729"]
[Black "Omk124"]
[Result "1-0"]
[WhiteElo "2572"]
[BlackElo "2381"]
[TimeControl "180+1"]
[EndTime "10:56:40 PDT"]
[Termination "blitzking1729 won by resignation"]

1. d4 {[%clk 0:03:00.9]} 1... Nf6 {[%clk 0:02:59.6]} 2. Bg5 {[%clk 0:03:00.1]}
2... d5 {[%clk 0:02:58.6]} 3. Nd2 {[%clk 0:02:59.8]} 3... Nbd7 {[%clk
0:02:57.5]} 4. Ngf3 {[%clk 0:02:55.9]} 4... e6 {[%clk 0:02:57.8]} 5. e3 {[%clk
0:02:55.4]} 5... Be7 {[%clk 0:02:57.7]} 6. Bd3 {[%clk 0:02:55]} 6... O-O {[%clk
0:02:58.1]} 7. O-O {[%clk 0:02:54.9]} 7... b6 {[%clk 0:02:58.5]} 8. c4 {[%clk
0:02:46.2]} 8... Bb7 {[%clk 0:02:58.7]} 9. cxd5 {[%clk 0:02:46.4]} 9... exd5
{[%clk 0:02:59.1]} 10. Qc2 {[%clk 0:02:39.9]} 10... Rc8 {[%clk 0:02:50.4]} 11.
Ne5 {[%clk 0:02:36.9]} 11... h6 {[%clk 0:02:39.1]} 12. Bxf6 {[%clk 0:02:29.4]}
12... Nxf6 {[%clk 0:02:33.8]} 13. Bf5 {[%clk 0:02:24.6]} 13... Rb8 {[%clk
0:02:29.5]} 14. Rac1 {[%clk 0:02:19.4]} 14... c5 {[%clk 0:02:29.3]} 15. dxc5
{[%clk 0:02:14.9]} 15... bxc5 {[%clk 0:02:28.4]} 16. Nb3 {[%clk 0:02:14.5]}
16... Qc7 {[%clk 0:02:14.8]} 17. Ng4 {[%clk 0:01:32.4]} 17... Nxg4 {[%clk
0:01:53.8]} 18. Bxg4 {[%clk 0:01:31.5]} 18... Bd6 {[%clk 0:01:53.7]} 19. h3
{[%clk 0:01:28.4]} 19... c4 {[%clk 0:01:02.6]} 20. Nd4 {[%clk 0:01:26.8]} 20...
Be5 {[%clk 0:01:03.1]} 21. Rfd1 {[%clk 0:01:23.7]} 21... Qb6 {[%clk 0:01:02.9]}
22. Bf3 {[%clk 0:01:15.8]} 22... Ba8 {[%clk 0:01:00.2]} 23. Rb1 {[%clk
0:01:01.4]} 23... Rfc8 {[%clk 0:00:59.3]} 24. Nf5 {[%clk 0:01:00.1]} 24... Qe6
{[%clk 0:00:46]} 25. Bxd5 {[%clk 0:00:52.8]} 25... Bxd5 {[%clk 0:00:44.5]} 26.
Rxd5 {[%clk 0:00:52.1]} 26... Bxb2 {[%clk 0:00:43.1]} 27. Rxb2 {[%clk 0:00:48]}
27... Rxb2 {[%clk 0:00:40.4]} 28. Qxb2 {[%clk 0:00:47.8]} 28... c3 {[%clk
0:00:41.1]} 29. Qc2 {[%clk 0:00:43.1]} 29... g6 {[%clk 0:00:41]} 30. Nxh6+
{[%clk 0:00:33.1]} 30... Kh7 {[%clk 0:00:41.2]} 31. Ng4 {[%clk 0:00:31.3]} 31...
f5 {[%clk 0:00:29.1]} 32. Rd7+ {[%clk 0:00:22.9]} 32... Kh8 {[%clk 0:00:27.2]}
33. Rd3 {[%clk 0:00:18.6]} 33... fxg4 {[%clk 0:00:27]} 34. Rxc3 {[%clk
0:00:18.7]} 34... Rb8 {[%clk 0:00:22.4]} 35. hxg4 {[%clk 0:00:17.7]} 35... Qxg4
{[%clk 0:00:22.6]} 36. Rc4 {[%clk 0:00:17]} 36... Qh5 {[%clk 0:00:19.7]} 37. g3
{[%clk 0:00:15.9]} 37... Rd8 {[%clk 0:00:19.1]} 38. Rh4 {[%clk 0:00:15.4]} 38...
Rd1+ {[%clk 0:00:18.2]} 39. Kg2 {[%clk 0:00:15]} 1-0

[Event "*** SCC Grand Prix: Titled Tuesday Blitz"]
[Site "Chess.com"]
[Date "2020.06.23"]
[Round "5"]
[White "elohunter1999"]
[Black "Julianos82"]
[Result "1-0"]
[WhiteElo "2467"]
[BlackElo "2236"]
[TimeControl "180+1"]
[EndTime "10:56:40 PDT"]
[Termination "elohunter1999 won by resignation"]

1. e4 {[%clk 0:03:00.9]} 1... c5 {[%clk 0:02:59.1]} 2. Nf3 {[%clk 0:03:00.6]}
2... b6 {[%clk 0:02:58.7]} 3. d4 {[%clk 0:02:59.8]} 3... cxd4 {[%clk 0:02:59.6]}
4. Nxd4 {[%clk 0:03:00.2]} 4... Bb7 {[%clk 0:03:00]} 5. Nc3 {[%clk 0:02:59.3]}
5... a6 {[%clk 0:03:00.2]} 6. Be3 {[%clk 0:02:58.4]} 6... e6 {[%clk 0:03:00]} 7.
Qd2 {[%clk 0:02:32.3]} 7... Qc7 {[%clk 0:02:59.4]} 8. f3 {[%clk 0:02:30.6]} 8...
Bb4 {[%clk 0:02:52.8]} 9. Nde2 {[%clk 0:02:26.6]} 9... Nf6 {[%clk 0:02:45.8]}
10. O-O-O {[%clk 0:02:26.1]} 10... Nc6 {[%clk 0:02:38.5]} 11. a3 {[%clk
0:02:16.2]} 11... Be7 {[%clk 0:02:33.8]} 12. Bf4 {[%clk 0:02:01.1]} 12... e5
{[%clk 0:02:19.8]} 13. Bg5 {[%clk 0:02:00.3]} 13... Na5 {[%clk 0:02:15]} 14. Ng3
{[%clk 0:01:55.9]} 14... h6 {[%clk 0:02:02.1]} 15. Bxf6 {[%clk 0:01:55.2]} 15...
Bxf6 {[%clk 0:02:03]} 16. Kb1 {[%clk 0:01:53.7]} 16... O-O {[%clk 0:01:24.8]}
17. Qxd7 {[%clk 0:01:42.6]} 17... Qxd7 {[%clk 0:01:24.7]} 18. Rxd7 {[%clk
0:01:43.5]} 18... Rfd8 {[%clk 0:01:24.6]} 19. Rxd8+ {[%clk 0:01:39.1]} 19...
Rxd8 {[%clk 0:01:25.5]} 20. Be2 {[%clk 0:01:38.3]} 20... b5 {[%clk 0:01:22.1]}
21. Rd1 {[%clk 0:01:28.7]} 21... Rxd1+ {[%clk 0:01:21.9]} 22. Nxd1 {[%clk
0:01:26.5]} 22... g6 {[%clk 0:01:22.3]} 23. Nf1 {[%clk 0:01:23]} 23... Bg5
{[%clk 0:01:21.3]} 24. Nfe3 {[%clk 0:01:21.3]} 24... Kf8 {[%clk 0:01:18.9]} 25.
c3 {[%clk 0:01:18.5]} 25... Ke7 {[%clk 0:01:14.2]} 26. b4 {[%clk 0:01:18.3]}
26... Nc6 {[%clk 0:01:06.5]} 27. Nd5+ {[%clk 0:01:18.3]} 27... Kd6 {[%clk
0:01:03.2]} 28. c4 {[%clk 0:01:02.9]} 28... bxc4 {[%clk 0:00:57.3]} 29. Bxc4
{[%clk 0:01:03.8]} 29... Nd4 {[%clk 0:00:55.1]} 30. N1c3 {[%clk 0:01:02.9]}
30... Bd2 {[%clk 0:00:52.4]} 31. Kb2 {[%clk 0:00:58.4]} 31... Bxc3+ {[%clk
0:00:49.6]} 32. Nxc3 {[%clk 0:00:53.8]} 32... f5 {[%clk 0:00:48.9]} 33. a4
{[%clk 0:00:46.4]} 33... h5 {[%clk 0:00:48.5]} 34. h4 {[%clk 0:00:38.4]} 34...
f4 {[%clk 0:00:34.8]} 35. Bf7 {[%clk 0:00:37]} 35... g5 {[%clk 0:00:30.4]} 36.
hxg5 {[%clk 0:00:33.2]} 36... h4 {[%clk 0:00:30.8]} 37. Bh5 {[%clk 0:00:27.4]}
37... Ke6 {[%clk 0:00:24.8]} 38. b5 {[%clk 0:00:23.5]} 38... a5 {[%clk
0:00:21.8]} 39. Nd5 {[%clk 0:00:19.6]} 39... Bxd5 {[%clk 0:00:20.3]} 40. Bg4+
{[%clk 0:00:19.9]} 40... Kd6 {[%clk 0:00:20]} 41. exd5 {[%clk 0:00:20.4]} 41...
Kxd5 {[%clk 0:00:19.3]} 42. g6 {[%clk 0:00:20.8]} 42... Ne6 {[%clk 0:00:19.6]}
43. Bxe6+ {[%clk 0:00:19.1]} 43... Kxe6 {[%clk 0:00:20.5]} 44. b6 {[%clk
0:00:18.9]} 44... h3 {[%clk 0:00:20]} 45. gxh3 {[%clk 0:00:18.8]} 1-0

[Event "*** SCC Grand Prix: Titled Tuesday Blitz"]
[Site "Chess.com"]
[Date "2020.06.23"]
[Round "5"]
[White "OparinGrigoriy"]
[Black "Karateloru"]
[Result "0-1"]
[WhiteElo "2886"]
[BlackElo "2633"]
[TimeControl "180+1"]
[EndTime "10:56:45 PDT"]
[Termination "Karateloru won by checkmate"]

1. d4 {[%clk 0:03:00.9]} 1... e6 {[%clk 0:02:57.9]} 2. c4 {[%clk 0:03:00.8]}
2... g6 {[%clk 0:02:57.3]} 3. Nf3 {[%clk 0:03:00]} 3... Bg7 {[%clk 0:02:57.6]}
4. g3 {[%clk 0:03:00.7]} 4... Ne7 {[%clk 0:02:58]} 5. Bg2 {[%clk 0:03:01]} 5...
d5 {[%clk 0:02:58.6]} 6. O-O {[%clk 0:03:00.8]} 6... O-O {[%clk 0:02:58.6]} 7.
Nc3 {[%clk 0:02:55.4]} 7... dxc4 {[%clk 0:02:47.9]} 8. e4 {[%clk 0:02:53.6]}
8... Nbc6 {[%clk 0:02:46.6]} 9. Be3 {[%clk 0:02:53.3]} 9... a6 {[%clk
0:02:45.6]} 10. a4 {[%clk 0:02:49.5]} 10... b6 {[%clk 0:02:38.9]} 11. Qe2 {[%clk
0:02:04.3]} 11... Nxd4 {[%clk 0:01:46.6]} 12. Nxd4 {[%clk 0:02:03.9]} 12... Bxd4
{[%clk 0:01:47.5]} 13. e5 {[%clk 0:02:04.5]} 13... Ra7 {[%clk 0:01:45.6]} 14.
Rfd1 {[%clk 0:02:00.6]} 14... c5 {[%clk 0:01:45.5]} 15. Ne4 {[%clk 0:01:59.6]}
15... Qc7 {[%clk 0:01:36]} 16. Nf6+ {[%clk 0:01:51.1]} 16... Kh8 {[%clk
0:01:35.5]} 17. Bxd4 {[%clk 0:01:49.5]} 17... cxd4 {[%clk 0:01:35.6]} 18. Rxd4
{[%clk 0:01:50.4]} 18... Ng8 {[%clk 0:01:28.9]} 19. Qe3 {[%clk 0:01:19.5]} 19...
Qe7 {[%clk 0:01:15.8]} 20. Qg5 {[%clk 0:00:39.9]} 20... Qc5 {[%clk 0:01:01.4]}
21. Rh4 {[%clk 0:00:18.4]} 21... Nxf6 {[%clk 0:01:01.3]} 22. Qxf6+ {[%clk
0:00:19.3]} 22... Kg8 {[%clk 0:01:01.5]} 23. Re1 {[%clk 0:00:12.8]} 23... Rd7
{[%clk 0:00:56.5]} 24. Qg5 {[%clk 0:00:09.6]} 24... f5 {[%clk 0:00:54.7]} 25.
Qf4 {[%clk 0:00:05.2]} 25... b5 {[%clk 0:00:54.3]} 26. axb5 {[%clk 0:00:05.2]}
26... axb5 {[%clk 0:00:54.6]} 27. Qc1 {[%clk 0:00:05]} 27... Rfd8 {[%clk
0:00:54.1]} 28. Rf4 {[%clk 0:00:04.6]} 28... Qb4 {[%clk 0:00:52.2]} 29. Bf1
{[%clk 0:00:03]} 29... Qd2 {[%clk 0:00:48.7]} 30. Qa1 {[%clk 0:00:01.8]} 30...
Bb7 {[%clk 0:00:48.7]} 31. h4 {[%clk 0:00:01.9]} 31... Qd5 {[%clk 0:00:47.6]}
32. f3 {[%clk 0:00:02.6]} 32... Qc5+ {[%clk 0:00:47]} 33. Kh2 {[%clk 0:00:02.8]}
33... Rd2+ {[%clk 0:00:47.1]} 34. Bg2 {[%clk 0:00:03.4]} 34... Qf2 {[%clk
0:00:46.3]} 35. Rg1 {[%clk 0:00:04.1]} 35... Bxf3 {[%clk 0:00:46]} 36. Rxf3
{[%clk 0:00:04.3]} 36... Qxf3 {[%clk 0:00:45.4]} 37. Qa6 {[%clk 0:00:04.5]}
37... Qd5 {[%clk 0:00:42.5]} 38. Qa7 {[%clk 0:00:04.2]} 38... Qxe5 {[%clk
0:00:38.5]} 39. Qe7 {[%clk 0:00:04.6]} 39... f4 {[%clk 0:00:35.8]} 40. Rf1
{[%clk 0:00:03.8]} 40... Rxg2+ {[%clk 0:00:29.7]} 41. Kxg2 {[%clk 0:00:03.9]}
41... Rd2+ {[%clk 0:00:29.7]} 42. Kh3 {[%clk 0:00:01.6]} 42... Qf5+ {[%clk
0:00:29.1]} 43. g4 {[%clk 0:00:02.2]} 43... Qd3+ {[%clk 0:00:29.2]} 44. Rf3
{[%clk 0:00:03.1]} 44... Qxf3# {[%clk 0:00:29.4]} 0-1

[Event "*** SCC Grand Prix: Titled Tuesday Blitz"]
[Site "Chess.com"]
[Date "2020.06.23"]
[Round "5"]
[White "Arman_Hakemi"]
[Black "elamier"]
[Result "1-0"]
[WhiteElo "2584"]
[BlackElo "2327"]
[TimeControl "180+1"]
[EndTime "10:56:45 PDT"]
[Termination "Arman_Hakemi won by resignation"]

1. b4 {[%clk 0:03:00.9]} 1... d5 {[%clk 0:02:58.8]} 2. Bb2 {[%clk 0:03:00.9]}
2... c6 {[%clk 0:02:59]} 3. e3 {[%clk 0:03:00.7]} 3... Qb6 {[%clk 0:02:58.4]} 4.
a3 {[%clk 0:02:56.9]} 4... a5 {[%clk 0:02:57.8]} 5. b5 {[%clk 0:02:57.4]} 5...
cxb5 {[%clk 0:02:44.4]} 6. Nc3 {[%clk 0:02:56.1]} 6... e6 {[%clk 0:02:42.8]} 7.
Bxb5+ {[%clk 0:02:55]} 7... Bd7 {[%clk 0:02:42.2]} 8. a4 {[%clk 0:02:54]} 8...
Bxb5 {[%clk 0:02:33.9]} 9. Nxb5 {[%clk 0:02:54.9]} 9... Nc6 {[%clk 0:02:24.9]}
10. Nf3 {[%clk 0:02:53.7]} 10... Nf6 {[%clk 0:02:24.1]} 11. O-O {[%clk 0:02:53]}
11... Be7 {[%clk 0:02:23.4]} 12. d4 {[%clk 0:02:53.1]} 12... O-O {[%clk
0:02:22]} 13. Rc1 {[%clk 0:02:53.3]} 13... Na7 {[%clk 0:02:19.6]} 14. Nxa7
{[%clk 0:02:40]} 14... Rxa7 {[%clk 0:02:12.6]} 15. Rb1 {[%clk 0:02:33]} 15...
Qc6 {[%clk 0:02:08.6]} 16. Ne5 {[%clk 0:02:32]} 16... Qxa4 {[%clk 0:02:06.3]}
17. Bc3 {[%clk 0:02:26.4]} 17... Qe8 {[%clk 0:01:48.7]} 18. Rb6 {[%clk
0:02:14.7]} 18... Nd7 {[%clk 0:01:45.9]} 19. Nxd7 {[%clk 0:02:11.1]} 19... Qxd7
{[%clk 0:01:46.3]} 20. Qa1 {[%clk 0:02:11.4]} 20... Rc8 {[%clk 0:01:44.4]} 21.
Rc1 {[%clk 0:01:30.3]} 21... Qc7 {[%clk 0:01:32.1]} 22. Bxa5 {[%clk 0:01:29.2]}
22... Rca8 {[%clk 0:01:31.2]} 23. Qc3 {[%clk 0:01:24]} 23... Bd8 {[%clk
0:01:06.3]} 24. Rxe6 {[%clk 0:01:13.1]} 24... Qd7 {[%clk 0:00:57.8]} 25. Bxd8
{[%clk 0:00:52.8]} 25... Qxe6 {[%clk 0:00:57.5]} 26. Bh4 {[%clk 0:00:52.1]}
26... Qc6 {[%clk 0:00:57.8]} 27. Qe1 {[%clk 0:00:43]} 27... h6 {[%clk
0:00:50.2]} 28. c3 {[%clk 0:00:40]} 28... Ra2 {[%clk 0:00:46.8]} 29. h3 {[%clk
0:00:36.2]} 29... Qc4 {[%clk 0:00:29.1]} 30. Bg3 {[%clk 0:00:33.7]} 30... Qe2
{[%clk 0:00:16.1]} 31. Qxe2 {[%clk 0:00:25.8]} 31... Rxe2 {[%clk 0:00:16.3]} 32.
c4 {[%clk 0:00:26.7]} 32... dxc4 {[%clk 0:00:13.5]} 33. Rxc4 {[%clk 0:00:27.6]}
33... Rb2 {[%clk 0:00:13.5]} 34. d5 {[%clk 0:00:23.9]} 34... b5 {[%clk
0:00:13.9]} 35. Rc7 {[%clk 0:00:23.7]} 35... f5 {[%clk 0:00:12.6]} 36. Be5
{[%clk 0:00:20]} 36... g5 {[%clk 0:00:10.5]} 37. Bxb2 {[%clk 0:00:19.6]} 1-0

[Event "*** SCC Grand Prix: Titled Tuesday Blitz"]
[Site "Chess.com"]
[Date "2020.06.23"]
[Round "5"]
[White "ZEN-22"]
[Black "PavelShkapenko"]
[Result "0-1"]
[WhiteElo "2439"]
[BlackElo "2657"]
[TimeControl "180+1"]
[EndTime "10:56:45 PDT"]
[Termination "PavelShkapenko won on time"]

1. e4 {[%clk 0:02:36]} 1... c5 {[%clk 0:02:58.6]} 2. b4 {[%clk 0:02:22.1]} 2...
cxb4 {[%clk 0:02:55.4]} 3. a3 {[%clk 0:02:21.7]} 3... b3 {[%clk 0:02:55.5]} 4.
cxb3 {[%clk 0:02:21]} 4... d5 {[%clk 0:02:56]} 5. exd5 {[%clk 0:02:12.3]} 5...
Nf6 {[%clk 0:02:56.1]} 6. Nc3 {[%clk 0:02:10.5]} 6... Nxd5 {[%clk 0:02:54.1]} 7.
Bb2 {[%clk 0:02:10.4]} 7... Nc6 {[%clk 0:02:53.3]} 8. Nf3 {[%clk 0:02:09.7]}
8... e6 {[%clk 0:02:41.5]} 9. Nxd5 {[%clk 0:02:08.3]} 9... Qxd5 {[%clk
0:02:38.2]} 10. Bc4 {[%clk 0:02:07.9]} 10... Qe4+ {[%clk 0:02:37.9]} 11. Be2
{[%clk 0:02:07.8]} 11... Be7 {[%clk 0:02:30]} 12. O-O {[%clk 0:01:36.4]} 12...
O-O {[%clk 0:02:29.3]} 13. Re1 {[%clk 0:01:36.9]} 13... Qg6 {[%clk 0:02:26.1]}
14. d4 {[%clk 0:01:35.9]} 14... Bf6 {[%clk 0:01:58.3]} 15. Bd3 {[%clk
0:01:23.5]} 15... Qh5 {[%clk 0:01:58.3]} 16. Re4 {[%clk 0:01:22.9]} 16... Rd8
{[%clk 0:01:47.3]} 17. Qe2 {[%clk 0:01:15.4]} 17... Bd7 {[%clk 0:01:34.8]} 18.
Rd1 {[%clk 0:01:05.5]} 18... Be8 {[%clk 0:01:33.1]} 19. Rf4 {[%clk 0:00:56.7]}
19... Ne7 {[%clk 0:01:21.7]} 20. g4 {[%clk 0:00:45.7]} 20... Qh6 {[%clk
0:00:51.4]} 21. Bc1 {[%clk 0:00:42.7]} 21... Nd5 {[%clk 0:00:51.6]} 22. Rxf6
{[%clk 0:00:39.2]} 22... Qxf6 {[%clk 0:00:49.6]} 23. Bg5 {[%clk 0:00:38.7]}
23... Nf4 {[%clk 0:00:46.8]} 24. Qe3 {[%clk 0:00:38]} 24... Nh3+ {[%clk
0:00:46.8]} 25. Kg2 {[%clk 0:00:37.4]} 25... Nxg5 {[%clk 0:00:46.9]} 26. Nxg5
{[%clk 0:00:30.3]} 26... h6 {[%clk 0:00:42.3]} 27. Nf3 {[%clk 0:00:25.9]} 27...
Bc6 {[%clk 0:00:41.2]} 28. Be4 {[%clk 0:00:24.3]} 28... Bxe4 {[%clk 0:00:40.3]}
29. Qxe4 {[%clk 0:00:24.4]} 29... Rd5 {[%clk 0:00:40.8]} 30. h4 {[%clk
0:00:21.1]} 30... Rad8 {[%clk 0:00:39.4]} 31. Rd3 {[%clk 0:00:19.3]} 31... g6
{[%clk 0:00:31.7]} 32. Rc3 {[%clk 0:00:17.2]} 32... h5 {[%clk 0:00:31.5]} 33.
gxh5 {[%clk 0:00:14.9]} 33... Rxh5 {[%clk 0:00:30.1]} 34. Qxb7 {[%clk
0:00:11.6]} 34... Qf4 {[%clk 0:00:26.8]} 35. Rc4 {[%clk 0:00:08.4]} 35... Qg4+
{[%clk 0:00:25.6]} 36. Kf1 {[%clk 0:00:08.8]} 36... Rhd5 {[%clk 0:00:26.1]} 37.
Ne5 {[%clk 0:00:07.7]} 37... Qf5 {[%clk 0:00:26]} 38. Rc3 {[%clk 0:00:06.5]}
38... Rxd4 {[%clk 0:00:25.2]} 39. Rf3 {[%clk 0:00:01.1]} 39... Rf4 {[%clk
0:00:24.9]} 0-1